[Event "Titled Tuesday Blitz November 01 Late 2022"]
[White "Faizrakhmanov, Ramil"]
[Black "Deac, Bogdan-Daniel"]
[WhiteFideId "24103209"]
[BlackFideId "1226380"]
[WhiteElo "2421"]
[BlackElo "2648"]
[Result "1/2-1/2"]
[Round "06"]
[TimeControl "180+1"]
[Date "2022.11.01"]
[WhiteClock "0:00:11"]
[BlackClock "0:00:06"]

1. d4 {[%clk 0:03:00]}  Nf6 {[%clk 0:02:59]} 2. c4 {[%clk 0:03:01]}  e6 {[%clk 0:03:00]} 3. Nf3 {[%clk 0:03:00]}  d5 {[%clk 0:02:59]} 4. Nc3 {[%clk 0:03:01]}  dxc4 {[%clk 0:02:58]} 5. e4 {[%clk 0:03:00]}  Bb4 {[%clk 0:02:57]} 6. Bxc4 {[%clk 0:03:00]}  Nxe4 {[%clk 0:02:57]} 7. O-O {[%clk 0:03:01]}  Nf6 {[%clk 0:02:57]} 8. Qa4+ {[%clk 0:03:00]}  Nc6 {[%clk 0:02:57]} 9. Ne5 {[%clk 0:02:59]}  Bd6 {[%clk 0:02:57]} 10. Nxc6 {[%clk 0:02:56]}  bxc6 {[%clk 0:02:58]} 11. Qxc6+ {[%clk 0:02:57]}  Bd7 {[%clk 0:02:58]} 12. Qf3 {[%clk 0:02:57]}  h6 {[%clk 0:02:59]} 13. Bf4 {[%clk 0:02:52]}  Bxf4 {[%clk 0:02:58]} 14. Qxf4 {[%clk 0:02:52]}  Bc6 {[%clk 0:02:59]} 15. Bb5 {[%clk 0:02:38]}  Bxb5 {[%clk 0:02:45]} 16. Nxb5 {[%clk 0:02:39]}  Nd5 {[%clk 0:02:46]} 17. Qe5 {[%clk 0:02:31]}  O-O {[%clk 0:02:43]} 18. Rac1 {[%clk 0:02:31]}  Rb8 {[%clk 0:02:38]} 19. Nxc7 {[%clk 0:02:27]}  Rxb2 {[%clk 0:02:22]} 20. Nxd5 {[%clk 0:02:26]}  Qxd5 {[%clk 0:02:22]} 21. Qxd5 {[%clk 0:02:25]}  exd5 {[%clk 0:02:23]} 22. Rc5 {[%clk 0:02:25]}  Rxa2 {[%clk 0:02:13]} 23. Rxd5 {[%clk 0:02:25]}  Rc8 {[%clk 0:02:14]} 24. Rf5 {[%clk 0:02:09]}  Rd8 {[%clk 0:02:07]} 25. Rb1 {[%clk 0:01:32]}  Rxd4 {[%clk 0:02:01]} 26. g3 {[%clk 0:01:32]}  g6 {[%clk 0:01:54]} 27. Rf3 {[%clk 0:01:31]}  Rd7 {[%clk 0:01:49]} 28. Rb8+ {[%clk 0:01:31]}  Kg7 {[%clk 0:01:49]} 29. h4 {[%clk 0:01:29]}  a5 {[%clk 0:01:43]} 30. Ra8 {[%clk 0:01:29]}  Rd6 {[%clk 0:00:48]} 31. h5 {[%clk 0:01:27]}  g5 {[%clk 0:00:38]} 32. Ra7 {[%clk 0:01:15]}  Rf6 {[%clk 0:00:38]} 33. Rxf6 {[%clk 0:01:15]}  Kxf6 {[%clk 0:00:39]} 34. Ra6+ {[%clk 0:01:15]}  Kg7 {[%clk 0:00:39]} 35. g4 {[%clk 0:01:11]}  a4 {[%clk 0:00:36]} 36. Kg2 {[%clk 0:01:09]}  Ra3 {[%clk 0:00:27]} 37. Ra7 {[%clk 0:01:06]}  Ra1 {[%clk 0:00:22]} 38. Ra6 {[%clk 0:01:05]}  a3 {[%clk 0:00:20]} 39. Kh2 {[%clk 0:00:59]}  a2 {[%clk 0:00:20]} 40. Kg2 {[%clk 0:00:56]}  Kf8 {[%clk 0:00:18]} 41. Ra8+ {[%clk 0:00:52]}  Ke7 {[%clk 0:00:19]} 42. Ra7+ {[%clk 0:00:53]}  Kd6 {[%clk 0:00:19]} 43. Ra6+ {[%clk 0:00:53]}  Kc5 {[%clk 0:00:18]} 44. Ra5+ {[%clk 0:00:51]}  Kb4 {[%clk 0:00:18]} 45. Ra7 {[%clk 0:00:49]}  Kb3 {[%clk 0:00:16]} 46. Rb7+ {[%clk 0:00:49]}  Kc3 {[%clk 0:00:16]} 47. Rc7+ {[%clk 0:00:46]}  Kd4 {[%clk 0:00:15]} 48. Ra7 {[%clk 0:00:46]}  f5 {[%clk 0:00:15]} 49. gxf5 {[%clk 0:00:45]}  Ke5 {[%clk 0:00:15]} 50. Ra5+ {[%clk 0:00:44]}  Kf6 {[%clk 0:00:15]} 51. Kh2 {[%clk 0:00:42]}  g4 {[%clk 0:00:15]} 52. Kg2 {[%clk 0:00:32]}  Kg5 {[%clk 0:00:14]} 53. f6+ {[%clk 0:00:24]}  Kxf6 {[%clk 0:00:14]} 54. Kh2 {[%clk 0:00:20]}  Ke6 {[%clk 0:00:14]} 55. Kg2 {[%clk 0:00:20]}  Kd6 {[%clk 0:00:14]} 56. Kh2 {[%clk 0:00:19]}  Kc6 {[%clk 0:00:15]} 57. Kg2 {[%clk 0:00:19]}  Kb6 {[%clk 0:00:15]} 58. Ra8 {[%clk 0:00:19]}  Kc5 {[%clk 0:00:15]} 59. Ra5+ {[%clk 0:00:19]}  Kd4 {[%clk 0:00:14]} 60. Kh2 {[%clk 0:00:17]}  Ke4 {[%clk 0:00:12]} 61. Kg2 {[%clk 0:00:16]}  Kf4 {[%clk 0:00:13]} 62. Ra6 {[%clk 0:00:12]}  Kg5 {[%clk 0:00:09]} 63. Ra5+ {[%clk 0:00:12]}  Kf4 {[%clk 0:00:09]} 64. Ra6 {[%clk 0:00:11]}  Ke4 {[%clk 0:00:09]} 65. Ra5 {[%clk 0:00:11]}  Kd3 {[%clk 0:00:08]} 66. Ra8 {[%clk 0:00:11]}  Kc3 {[%clk 0:00:08]} 67. Rc8+ {[%clk 0:00:11]}  Kb4 {[%clk 0:00:08]} 68. Rb8+ {[%clk 0:00:11]}  Ka3 {[%clk 0:00:07]} 69. Ra8+ {[%clk 0:00:11]}  Kb3 {[%clk 0:00:08]} 70. Rb8+ {[%clk 0:00:12]}  Kc4 {[%clk 0:00:08]} 71. Ra8 {[%clk 0:00:12]}  Kd5 {[%clk 0:00:07]} 72. Ra5+ {[%clk 0:00:11]}  Ke4 {[%clk 0:00:06]} 73. Ra4+ {[%clk 0:00:11]}  Kf5 {[%clk 0:00:06]} 74. Ra5+ {[%clk 0:00:11]}  Kf4 {[%clk 0:00:06]} 1/2-1/2


[Site "https://www.chess.com"]

[Event "Titled Tuesday Blitz November 01 Late 2022"]
[White "Fernandez Guillen, Ernesto J."]
[Black "Ter-Sahakyan, Samvel"]
[WhiteFideId "3512428"]
[BlackFideId "13302531"]
[WhiteElo "2422"]
[BlackElo "2604"]
[Result "1-0"]
[Round "06"]
[TimeControl "180+1"]
[Date "2022.11.01"]
[WhiteClock "0:01:51"]
[BlackClock "0:00:15"]

1. e4 {[%clk 0:02:59]}  c6 {[%clk 0:03:00]} 2. d4 {[%clk 0:02:59]}  d5 {[%clk 0:03:00]} 3. e5 {[%clk 0:03:00]}  Bf5 {[%clk 0:02:57]} 4. c3 {[%clk 0:03:01]}  e6 {[%clk 0:02:55]} 5. Bd3 {[%clk 0:03:01]}  Bxd3 {[%clk 0:02:51]} 6. Qxd3 {[%clk 0:03:02]}  Qb6 {[%clk 0:02:43]} 7. Ne2 {[%clk 0:03:03]}  c5 {[%clk 0:02:41]} 8. O-O {[%clk 0:03:01]}  Nc6 {[%clk 0:02:42]} 9. Nd2 {[%clk 0:02:59]}  cxd4 {[%clk 0:02:39]} 10. cxd4 {[%clk 0:02:58]}  Rc8 {[%clk 0:02:32]} 11. a3 {[%clk 0:02:54]}  Nge7 {[%clk 0:02:27]} 12. b4 {[%clk 0:02:51]}  Nf5 {[%clk 0:02:22]} 13. Nf3 {[%clk 0:02:52]}  Be7 {[%clk 0:02:17]} 14. g4 {[%clk 0:02:47]}  Nh4 {[%clk 0:02:17]} 15. Nxh4 {[%clk 0:02:47]}  Bxh4 {[%clk 0:02:18]} 16. Be3 {[%clk 0:02:47]}  Be7 {[%clk 0:02:12]} 17. f4 {[%clk 0:02:47]}  h5 {[%clk 0:02:11]} 18. f5 {[%clk 0:02:46]}  hxg4 {[%clk 0:02:05]} 19. fxe6 {[%clk 0:02:47]}  fxe6 {[%clk 0:02:05]} 20. b5 {[%clk 0:02:44]}  Nd8 {[%clk 0:01:53]} 21. Qg6+ {[%clk 0:02:38]}  Kd7 {[%clk 0:01:53]} 22. Qxg7 {[%clk 0:02:38]}  Re8 {[%clk 0:01:45]} 23. a4 {[%clk 0:02:37]}  Rc2 {[%clk 0:01:38]} 24. Nf4 {[%clk 0:02:37]}  Qa5 {[%clk 0:01:25]} 25. Rac1 {[%clk 0:02:27]}  Qc3 {[%clk 0:01:00]} 26. Rxc2 {[%clk 0:02:27]}  Qxc2 {[%clk 0:00:58]} 27. Ng6 {[%clk 0:02:16]}  Qe4 {[%clk 0:00:36]} 28. Bg5 {[%clk 0:02:01]}  Qxd4+ {[%clk 0:00:37]} 29. Rf2 {[%clk 0:02:00]}  Kc8 {[%clk 0:00:18]} 30. Bxe7 {[%clk 0:01:51]}  Kb8 {[%clk 0:00:14]} 31. Bd6+ {[%clk 0:01:51]}  Ka8 {[%clk 0:00:15]} 32. Qc7 {[%clk 0:01:51]} 1-0


[Site "https://www.chess.com"]

[Event "Titled Tuesday Blitz November 01 Late 2022"]
[White "Fernandez Hernandez, Gerardo"]
[Black "Hoffmann, Asa"]
[WhiteFideId "2207400"]
[BlackFideId "2001470"]
[WhiteElo "2242"]
[BlackElo "2117"]
[Result "0-1"]
[Round "06"]
[TimeControl "180+1"]
[Date "2022.11.02"]
[WhiteClock "0:00:01"]
[BlackClock "0:00:33"]

1. e4 {[%clk 0:03:00]}  d6 {[%clk 0:02:56]} 2. d4 {[%clk 0:02:59]}  Nf6 {[%clk 0:02:53]} 3. Nc3 {[%clk 0:02:59]}  c6 {[%clk 0:02:53]} 4. f4 {[%clk 0:02:54]}  Qa5 {[%clk 0:02:46]} 5. Qf3 {[%clk 0:02:50]}  e5 {[%clk 0:02:39]} 6. Be3 {[%clk 0:02:27]}  b5 {[%clk 0:02:34]} 7. Bd3 {[%clk 0:01:51]}  b4 {[%clk 0:02:31]} 8. Nce2 {[%clk 0:01:49]}  Nbd7 {[%clk 0:02:29]} 9. c3 {[%clk 0:01:29]}  Rb8 {[%clk 0:02:25]} 10. Nh3 {[%clk 0:01:17]}  Be7 {[%clk 0:02:22]} 11. O-O {[%clk 0:01:14]}  O-O {[%clk 0:02:22]} 12. c4 {[%clk 0:00:49]}  h6 {[%clk 0:02:02]} 13. Ng3 {[%clk 0:00:44]}  exd4 {[%clk 0:01:58]} 14. Bxd4 {[%clk 0:00:42]}  Nc5 {[%clk 0:01:58]} 15. e5 {[%clk 0:00:15]}  Bg4 {[%clk 0:01:36]} 16. exf6 {[%clk 0:00:14]}  Bxf3 {[%clk 0:01:33]} 17. fxe7 {[%clk 0:00:15]}  Rfe8 {[%clk 0:01:24]} 18. Rxf3 {[%clk 0:00:15]}  Rxe7 {[%clk 0:01:22]} 19. Nf2 {[%clk 0:00:15]}  Rbe8 {[%clk 0:01:16]} 20. Nf5 {[%clk 0:00:11]}  Re1+ {[%clk 0:01:12]} 21. Rxe1 {[%clk 0:00:11]}  Rxe1+ {[%clk 0:01:12]} 22. Bf1 {[%clk 0:00:11]}  Qxa2 {[%clk 0:01:01]} 23. b3 {[%clk 0:00:09]}  Nxb3 {[%clk 0:00:54]} 24. Nd3 {[%clk 0:00:05]}  Rxf1+ {[%clk 0:00:46]} 25. Rxf1 {[%clk 0:00:06]}  Nxd4 {[%clk 0:00:36]} 26. Nxd4 {[%clk 0:00:06]}  Qxc4 {[%clk 0:00:35]} 27. Nf5 {[%clk 0:00:02]}  Qxd3 {[%clk 0:00:34]} 28. h3 {[%clk 0:00:01]}  Qxf5 {[%clk 0:00:33]} 0-1


[Site "https://www.chess.com"]

[Event "Titled Tuesday Blitz November 01 Late 2022"]
[White "Fishchuk, Vladyslav"]
[Black "Ozer, Omer Faruk"]
[WhiteFideId "34122117"]
[BlackFideId "6354564"]
[WhiteElo "2054"]
[BlackElo "2260"]
[Result "0-1"]
[Round "06"]
[TimeControl "180+1"]
[Date "2022.11.02"]
[WhiteClock "0:00:04"]
[BlackClock "0:00:51"]

1. Nf3 {[%clk 0:02:58]}  Nf6 {[%clk 0:02:59]} 2. c4 {[%clk 0:02:57]}  g6 {[%clk 0:02:54]} 3. Nc3 {[%clk 0:02:57]}  c5 {[%clk 0:02:52]} 4. d4 {[%clk 0:02:55]}  cxd4 {[%clk 0:02:51]} 5. Nxd4 {[%clk 0:02:56]}  Bg7 {[%clk 0:02:52]} 6. e4 {[%clk 0:02:53]}  Nc6 {[%clk 0:02:50]} 7. Be3 {[%clk 0:02:47]}  O-O {[%clk 0:02:48]} 8. Be2 {[%clk 0:02:45]}  d6 {[%clk 0:02:47]} 9. Nc2 {[%clk 0:02:41]}  Be6 {[%clk 0:02:35]} 10. O-O {[%clk 0:02:35]}  Rc8 {[%clk 0:02:35]} 11. f3 {[%clk 0:02:09]}  a6 {[%clk 0:02:33]} 12. Qd2 {[%clk 0:02:07]}  Nd7 {[%clk 0:02:18]} 13. Rac1 {[%clk 0:02:02]}  f5 {[%clk 0:02:16]} 14. b3 {[%clk 0:01:37]}  Qa5 {[%clk 0:02:12]} 15. Nd4 {[%clk 0:01:33]}  Nxd4 {[%clk 0:02:05]} 16. Bxd4 {[%clk 0:01:33]}  Bxd4+ {[%clk 0:02:04]} 17. Qxd4 {[%clk 0:01:33]}  f4 {[%clk 0:02:00]} 18. Kh1 {[%clk 0:01:26]}  Ne5 {[%clk 0:01:54]} 19. Rfd1 {[%clk 0:01:04]}  Qc5 {[%clk 0:01:36]} 20. Qd2 {[%clk 0:01:02]}  g5 {[%clk 0:01:30]} 21. Na4 {[%clk 0:01:01]}  Qf2 {[%clk 0:01:27]} 22. Rf1 {[%clk 0:00:49]}  Qh4 {[%clk 0:01:26]} 23. c5 {[%clk 0:00:44]}  Rf6 {[%clk 0:01:22]} 24. Qe1 {[%clk 0:00:34]}  Qh5 {[%clk 0:01:22]} 25. g4 {[%clk 0:00:27]}  fxg3 {[%clk 0:01:16]} 26. Qxg3 {[%clk 0:00:26]}  Rcf8 {[%clk 0:01:00]} 27. cxd6 {[%clk 0:00:24]}  exd6 {[%clk 0:01:00]} 28. Rc7 {[%clk 0:00:20]}  Nxf3 {[%clk 0:00:52]} 29. Rxf3 {[%clk 0:00:11]}  Rxf3 {[%clk 0:00:51]} 30. Bxf3 {[%clk 0:00:09]}  Rxf3 {[%clk 0:00:52]} 31. Qg2 {[%clk 0:00:04]}  Bh3 {[%clk 0:00:51]} 0-1


[Site "https://www.chess.com"]

[Event "Titled Tuesday Blitz November 01 Late 2022"]
[White "Gasparyan, David"]
[Black "Mendez Fortes, Eduardo Jesus"]
[WhiteFideId "13311980"]
[BlackFideId "3502376"]
[WhiteElo "2369"]
[BlackElo "2307"]
[Result "0-1"]
[Round "06"]
[TimeControl "180+1"]
[Date "2022.11.02"]
[WhiteClock "0:00:01"]
[BlackClock "0:00:18"]

1. Nf3 {[%clk 0:02:58]}  d5 {[%clk 0:02:59]} 2. e3 {[%clk 0:02:52]}  c5 {[%clk 0:02:58]} 3. d4 {[%clk 0:02:47]}  Nf6 {[%clk 0:02:57]} 4. c3 {[%clk 0:02:45]}  e6 {[%clk 0:02:56]} 5. Bd3 {[%clk 0:02:46]}  b6 {[%clk 0:02:56]} 6. Nbd2 {[%clk 0:02:46]}  Bb7 {[%clk 0:02:56]} 7. O-O {[%clk 0:02:46]}  Be7 {[%clk 0:02:55]} 8. Re1 {[%clk 0:02:46]}  O-O {[%clk 0:02:55]} 9. e4 {[%clk 0:02:46]}  dxe4 {[%clk 0:02:51]} 10. Nxe4 {[%clk 0:02:45]}  cxd4 {[%clk 0:02:39]} 11. cxd4 {[%clk 0:02:38]}  Nxe4 {[%clk 0:02:36]} 12. Bxe4 {[%clk 0:02:38]}  Bxe4 {[%clk 0:02:37]} 13. Rxe4 {[%clk 0:02:38]}  Nd7 {[%clk 0:02:37]} 14. Bd2 {[%clk 0:02:17]}  Nf6 {[%clk 0:02:37]} 15. Re1 {[%clk 0:02:14]}  Nd5 {[%clk 0:02:37]} 16. Qe2 {[%clk 0:02:12]}  Bf6 {[%clk 0:02:38]} 17. Rac1 {[%clk 0:02:08]}  Qd7 {[%clk 0:02:38]} 18. Qe4 {[%clk 0:02:05]}  Rac8 {[%clk 0:02:36]} 19. Bg5 {[%clk 0:02:04]}  Qa4 {[%clk 0:02:30]} 20. Rxc8 {[%clk 0:01:54]}  Rxc8 {[%clk 0:02:28]} 21. Bxf6 {[%clk 0:01:42]}  Nxf6 {[%clk 0:02:28]} 22. Qb7 {[%clk 0:01:42]}  Qd7 {[%clk 0:02:18]} 23. Qa6 {[%clk 0:01:34]}  g6 {[%clk 0:02:11]} 24. h3 {[%clk 0:01:33]}  Rc2 {[%clk 0:02:10]} 25. Qa3 {[%clk 0:01:31]}  Nd5 {[%clk 0:02:03]} 26. Ne5 {[%clk 0:01:31]}  Qc7 {[%clk 0:02:02]} 27. b3 {[%clk 0:01:15]}  Qc3 {[%clk 0:01:59]} 28. Rd1 {[%clk 0:01:09]}  Qc7 {[%clk 0:01:45]} 29. Nc4 {[%clk 0:00:58]}  Nf4 {[%clk 0:01:42]} 30. Ne3 {[%clk 0:00:51]}  Rc3 {[%clk 0:01:19]} 31. Qa4 {[%clk 0:00:41]}  Nd3 {[%clk 0:00:50]} 32. g3 {[%clk 0:00:15]}  Rc1 {[%clk 0:00:33]} 33. Qe8+ {[%clk 0:00:10]}  Kg7 {[%clk 0:00:33]} 34. Rf1 {[%clk 0:00:04]}  Rxf1+ {[%clk 0:00:32]} 35. Kxf1 {[%clk 0:00:03]}  Qc3 {[%clk 0:00:22]} 36. Qb5 {[%clk 0:00:01]}  Qe1+ {[%clk 0:00:21]} 37. Kg2 {[%clk 0:00:02]}  Qxf2+ {[%clk 0:00:21]} 38. Kh1 {[%clk 0:00:03]}  Qxe3 {[%clk 0:00:20]} 39. Qc4 {[%clk 0:00:01]}  Qe1+ {[%clk 0:00:19]} 40. Kg2 {[%clk 0:00:01]}  Qe2+ {[%clk 0:00:20]} 41. Kh1 {[%clk 0:00:02]}  Nf2+ {[%clk 0:00:16]} 42. Kg2 {[%clk 0:00:02]}  Qxc4 {[%clk 0:00:16]} 43. bxc4 {[%clk 0:00:03]}  Ne4 {[%clk 0:00:16]} 44. d5 {[%clk 0:00:03]}  exd5 {[%clk 0:00:16]} 45. cxd5 {[%clk 0:00:04]}  Nd6 {[%clk 0:00:17]} 46. Kf3 {[%clk 0:00:05]}  Kf6 {[%clk 0:00:18]} 47. h4 {[%clk 0:00:05]}  Ke5 {[%clk 0:00:18]} 48. g4 {[%clk 0:00:06]}  Kxd5 {[%clk 0:00:18]} 49. g5 {[%clk 0:00:06]}  Ke5 {[%clk 0:00:18]} 50. Kg4 {[%clk 0:00:05]}  Ke4 {[%clk 0:00:18]} 51. h5 {[%clk 0:00:06]}  b5 {[%clk 0:00:18]} 52. a3 {[%clk 0:00:03]}  a5 {[%clk 0:00:18]} 53. Kh4 {[%clk 0:00:01]}  b4 {[%clk 0:00:18]} 0-1


[Site "https://www.chess.com"]

[Event "Titled Tuesday Blitz November 01 Late 2022"]
[White "Hemam, Moulaye Brahim"]
[Black "Przybylski, Wojciech"]
[WhiteFideId "19600054"]
[BlackFideId "1117599"]
[WhiteElo "2088"]
[BlackElo "2221"]
[Result "0-1"]
[Round "06"]
[TimeControl "180+1"]
[Date "2022.11.02"]
[WhiteClock "0:00:02"]
[BlackClock "0:00:07"]

1. e4 {[%clk 0:02:59]}  c5 {[%clk 0:02:56]} 2. Nf3 {[%clk 0:02:58]}  e6 {[%clk 0:02:55]} 3. c4 {[%clk 0:02:58]}  d5 {[%clk 0:02:54]} 4. exd5 {[%clk 0:02:56]}  exd5 {[%clk 0:02:54]} 5. d4 {[%clk 0:02:56]}  Nf6 {[%clk 0:02:53]} 6. Be2 {[%clk 0:02:54]}  Nc6 {[%clk 0:02:52]} 7. O-O {[%clk 0:02:51]}  Be6 {[%clk 0:02:51]} 8. cxd5 {[%clk 0:02:44]}  Bxd5 {[%clk 0:02:48]} 9. Nc3 {[%clk 0:02:43]}  cxd4 {[%clk 0:02:44]} 10. Nxd4 {[%clk 0:02:38]}  Nxd4 {[%clk 0:02:41]} 11. Qxd4 {[%clk 0:02:37]}  Bc6 {[%clk 0:02:41]} 12. Qe5+ {[%clk 0:02:22]}  Be7 {[%clk 0:02:35]} 13. Bb5 {[%clk 0:02:10]}  Bxb5 {[%clk 0:02:30]} 14. Qxb5+ {[%clk 0:01:55]}  Qd7 {[%clk 0:02:29]} 15. Re1 {[%clk 0:01:48]}  Qxb5 {[%clk 0:01:59]} 16. Nxb5 {[%clk 0:01:49]}  Kf8 {[%clk 0:01:58]} 17. Bf4 {[%clk 0:01:35]}  h5 {[%clk 0:01:42]} 18. Rac1 {[%clk 0:01:27]}  Nd5 {[%clk 0:01:38]} 19. Bd6 {[%clk 0:01:21]}  a6 {[%clk 0:01:34]} 20. Bxe7+ {[%clk 0:01:16]}  Nxe7 {[%clk 0:01:33]} 21. Nd6 {[%clk 0:00:59]}  Rh6 {[%clk 0:01:21]} 22. Nxb7 {[%clk 0:00:50]}  Rb6 {[%clk 0:01:10]} 23. Rc7 {[%clk 0:00:47]}  Nd5 {[%clk 0:00:50]} 24. Rd7 {[%clk 0:00:44]}  Nf6 {[%clk 0:00:48]} 25. Rc7 {[%clk 0:00:33]}  Nd5 {[%clk 0:00:43]} 26. Rd7 {[%clk 0:00:33]}  Nf6 {[%clk 0:00:22]} 27. Rc7 {[%clk 0:00:32]}  Re8 {[%clk 0:00:19]} 28. Rec1 {[%clk 0:00:27]}  Nd5 {[%clk 0:00:10]} 29. Rd7 {[%clk 0:00:25]}  Nf6 {[%clk 0:00:10]} 30. Rdc7 {[%clk 0:00:23]}  Nd5 {[%clk 0:00:11]} 31. R7c5 {[%clk 0:00:21]}  Nf4 {[%clk 0:00:11]} 32. Nd6 {[%clk 0:00:14]}  Rxd6 {[%clk 0:00:10]} 33. Rf1 {[%clk 0:00:12]}  Ne2+ {[%clk 0:00:09]} 34. Kh1 {[%clk 0:00:12]}  Rd2 {[%clk 0:00:08]} 35. g3 {[%clk 0:00:11]}  h4 {[%clk 0:00:08]} 36. gxh4 {[%clk 0:00:11]}  Nf4 {[%clk 0:00:06]} 37. Rf5 {[%clk 0:00:10]}  Nd3 {[%clk 0:00:06]} 38. Rf3 {[%clk 0:00:10]}  Ree2 {[%clk 0:00:05]} 39. Kg2 {[%clk 0:00:09]}  g6 {[%clk 0:00:05]} 40. h3 {[%clk 0:00:08]}  Kg7 {[%clk 0:00:05]} 41. Kg3 {[%clk 0:00:08]}  a5 {[%clk 0:00:05]} 42. b3 {[%clk 0:00:08]}  Nb4 {[%clk 0:00:05]} 43. a3 {[%clk 0:00:08]}  Nc2 {[%clk 0:00:05]} 44. b4 {[%clk 0:00:08]}  axb4 {[%clk 0:00:05]} 45. axb4 {[%clk 0:00:08]}  Nxb4 {[%clk 0:00:06]} 46. Rb1 {[%clk 0:00:08]}  Nc6 {[%clk 0:00:05]} 47. Rb6 {[%clk 0:00:08]}  Ne5 {[%clk 0:00:06]} 48. Rf4 {[%clk 0:00:07]}  Rd3+ {[%clk 0:00:06]} 49. Kg2 {[%clk 0:00:06]}  Kh6 {[%clk 0:00:06]} 50. Rb7 {[%clk 0:00:05]}  f5 {[%clk 0:00:06]} 51. Rb6 {[%clk 0:00:04]}  Rdd2 {[%clk 0:00:05]} 52. Rxf5 {[%clk 0:00:04]}  Nd3 {[%clk 0:00:04]} 53. Rff6 {[%clk 0:00:04]}  Rxf2+ {[%clk 0:00:04]} 54. Rxf2 {[%clk 0:00:04]}  Rxf2+ {[%clk 0:00:05]} 55. Kg3 {[%clk 0:00:04]}  Rf5 {[%clk 0:00:06]} 56. Rd6 {[%clk 0:00:03]}  Nc5 {[%clk 0:00:06]} 57. Rc6 {[%clk 0:00:03]}  Ne4+ {[%clk 0:00:06]} 58. Kg4 {[%clk 0:00:03]}  Nf6+ {[%clk 0:00:06]} 59. Kg3 {[%clk 0:00:02]}  Nh5+ {[%clk 0:00:07]} 60. Kg4 {[%clk 0:00:02]}  Rf4# {[%clk 0:00:07]} 0-1


[Site "https://www.chess.com"]

[Event "Titled Tuesday Blitz November 01 Late 2022"]
[White "Hjartarson, Johann"]
[Black "Malka, Samuel"]
[WhiteFideId "2300044"]
[BlackFideId "20643675"]
[WhiteElo "2458"]
[BlackElo "2455"]
[Result "1-0"]
[Round "06"]
[TimeControl "180+1"]
[Date "2022.11.02"]
[WhiteClock "0:00:13"]
[BlackClock "0:00:09"]

1. c4 {[%clk 0:03:00]}  g6 {[%clk 0:02:59]} 2. g3 {[%clk 0:03:00]}  Bg7 {[%clk 0:02:58]} 3. Bg2 {[%clk 0:03:00]}  c5 {[%clk 0:02:59]} 4. Nc3 {[%clk 0:02:59]}  Nc6 {[%clk 0:02:58]} 5. a3 {[%clk 0:02:59]}  b6 {[%clk 0:02:37]} 6. b4 {[%clk 0:02:57]}  Bb7 {[%clk 0:02:37]} 7. Bb2 {[%clk 0:02:57]}  d6 {[%clk 0:02:33]} 8. d3 {[%clk 0:02:54]}  Qd7 {[%clk 0:02:30]} 9. b5 {[%clk 0:02:54]}  Nd4 {[%clk 0:02:21]} 10. e4 {[%clk 0:02:33]}  e6 {[%clk 0:02:03]} 11. Nge2 {[%clk 0:02:30]}  Ne7 {[%clk 0:01:58]} 12. h4 {[%clk 0:02:28]}  h6 {[%clk 0:01:55]} 13. Nxd4 {[%clk 0:02:23]}  Bxd4 {[%clk 0:01:54]} 14. Qd2 {[%clk 0:02:22]}  d5 {[%clk 0:01:47]} 15. exd5 {[%clk 0:02:14]}  exd5 {[%clk 0:01:46]} 16. O-O {[%clk 0:01:54]}  O-O-O {[%clk 0:01:39]} 17. cxd5 {[%clk 0:01:45]}  Nxd5 {[%clk 0:01:25]} 18. Ne2 {[%clk 0:01:28]}  Bxb2 {[%clk 0:01:16]} 19. Qxb2 {[%clk 0:01:28]}  Rhe8 {[%clk 0:01:13]} 20. Rac1 {[%clk 0:01:23]}  Kb8 {[%clk 0:01:07]} 21. d4 {[%clk 0:01:19]}  Qg4 {[%clk 0:00:56]} 22. Rfe1 {[%clk 0:01:10]}  c4 {[%clk 0:00:41]} 23. Rxc4 {[%clk 0:01:01]}  Re7 {[%clk 0:00:34]} 24. Qd2 {[%clk 0:00:42]}  Rde8 {[%clk 0:00:33]} 25. Rc2 {[%clk 0:00:42]}  f5 {[%clk 0:00:31]} 26. f3 {[%clk 0:00:18]}  Qh5 {[%clk 0:00:31]} 27. Kf2 {[%clk 0:00:14]}  f4 {[%clk 0:00:27]} 28. Nxf4 {[%clk 0:00:13]}  Nxf4 {[%clk 0:00:23]} 29. Qxf4+ {[%clk 0:00:13]}  Ka8 {[%clk 0:00:09]} 30. Rxe7 {[%clk 0:00:13]}  Rxe7 {[%clk 0:00:09]} 31. Qf8+ {[%clk 0:00:13]} 1-0


[Site "https://www.chess.com"]

[Event "Titled Tuesday Blitz November 01 Late 2022"]
[White "Ibarra Jerez, Jose Carlos"]
[Black "Thomforde-Toates, Noah"]
[WhiteFideId "2226332"]
[BlackFideId "30951992"]
[WhiteElo "2627"]
[BlackElo "2621"]
[Result "1-0"]
[Round "06"]
[TimeControl "180+1"]
[Date "2022.11.02"]
[WhiteClock "0:00:55"]
[BlackClock "0:00:18"]

1. e4 {[%clk 0:03:00]}  c5 {[%clk 0:02:59]} 2. Nf3 {[%clk 0:03:01]}  g6 {[%clk 0:02:59]} 3. d4 {[%clk 0:03:01]}  cxd4 {[%clk 0:02:59]} 4. Nxd4 {[%clk 0:03:02]}  Bg7 {[%clk 0:03:00]} 5. Nc3 {[%clk 0:03:02]}  Nc6 {[%clk 0:03:00]} 6. Be3 {[%clk 0:03:03]}  Nf6 {[%clk 0:03:00]} 7. Bc4 {[%clk 0:03:03]}  O-O {[%clk 0:03:01]} 8. Bb3 {[%clk 0:03:04]}  a5 {[%clk 0:03:01]} 9. O-O {[%clk 0:03:04]}  d6 {[%clk 0:03:01]} 10. Ndb5 {[%clk 0:03:04]}  Bd7 {[%clk 0:02:59]} 11. f3 {[%clk 0:03:01]}  Rc8 {[%clk 0:02:54]} 12. Qe2 {[%clk 0:03:00]}  Ne5 {[%clk 0:02:52]} 13. Na4 {[%clk 0:02:58]}  Be6 {[%clk 0:02:44]} 14. Bb6 {[%clk 0:02:53]}  Qd7 {[%clk 0:02:42]} 15. Bd4 {[%clk 0:02:41]}  Bc4 {[%clk 0:02:38]} 16. Bxc4 {[%clk 0:02:40]}  Nxc4 {[%clk 0:02:31]} 17. Na7 {[%clk 0:02:18]}  Qxa4 {[%clk 0:01:24]} 18. Nxc8 {[%clk 0:02:12]}  Rxc8 {[%clk 0:01:25]} 19. b3 {[%clk 0:02:12]}  Qc6 {[%clk 0:01:18]} 20. bxc4 {[%clk 0:02:10]}  Qxc4 {[%clk 0:01:19]} 21. Qxc4 {[%clk 0:02:03]}  Rxc4 {[%clk 0:01:20]} 22. c3 {[%clk 0:02:02]}  Nd7 {[%clk 0:01:17]} 23. Rab1 {[%clk 0:01:59]}  b6 {[%clk 0:00:52]} 24. Rfc1 {[%clk 0:01:52]}  Be5 {[%clk 0:00:43]} 25. Bxe5 {[%clk 0:01:37]}  dxe5 {[%clk 0:00:42]} 26. Rd1 {[%clk 0:01:37]}  Nf6 {[%clk 0:00:32]} 27. Rxb6 {[%clk 0:01:35]}  Rxc3 {[%clk 0:00:32]} 28. Rb5 {[%clk 0:01:33]}  Ra3 {[%clk 0:00:32]} 29. Rd2 {[%clk 0:01:33]}  e6 {[%clk 0:00:29]} 30. Rxe5 {[%clk 0:01:32]}  Nh5 {[%clk 0:00:28]} 31. Rb5 {[%clk 0:01:18]}  Nf4 {[%clk 0:00:28]} 32. Rb3 {[%clk 0:01:18]}  Ra4 {[%clk 0:00:27]} 33. g3 {[%clk 0:01:18]}  Nh5 {[%clk 0:00:23]} 34. e5 {[%clk 0:01:12]}  Kg7 {[%clk 0:00:21]} 35. Rb7 {[%clk 0:01:06]}  g5 {[%clk 0:00:21]} 36. Rdd7 {[%clk 0:01:04]}  Rxa2 {[%clk 0:00:20]} 37. Rxf7+ {[%clk 0:01:04]}  Kg6 {[%clk 0:00:21]} 38. g4 {[%clk 0:00:59]}  Ra1+ {[%clk 0:00:18]} 39. Kf2 {[%clk 0:00:59]}  Ra2+ {[%clk 0:00:18]} 40. Ke1 {[%clk 0:00:59]}  Nf4 {[%clk 0:00:17]} 41. Rg7+ {[%clk 0:00:57]}  Kh6 {[%clk 0:00:17]} 42. Rxh7+ {[%clk 0:00:56]}  Kg6 {[%clk 0:00:18]} 43. Rbg7# {[%clk 0:00:55]} 1-0


[Site "https://www.chess.com"]